fUSD/lending_fUSD_20240423
["ID","MTS","AMOUNT","RATE_DAILY","PERIOD"]
[323282933,1713870640786,-297.71519981,0.00011536,2]
[323282934,1713870640798,-266.91755375,0.00011536,2]
[323282935,1713870642041,554.84,0.00010575,2]
[323282995,1713870646737,-3545.1675072,0.00011274,2]
[323282996,1713870646765,-2273.64196613,0.00011274,2]
[323282997,1713870661837,1293.76132614,0.00010969,2]
[323282998,1713870673308,200.0,0.00010687,2]
[323282999,1713870705124,409.71,0.00010655,2]
[323283000,1713870708334,1191.9588,0.00011174,2]
[323283002,1713870782083,1000.0,0.00011174,2]
[323283003,1713870835307,159.02,0.00010644,2]
[323283004,1713870835538,159.02,0.00010783,2]
[323283005,1713870835803,159.02,0.00010922,2]
[323283006,1713870836347,159.02,0.0001106,2]
[323283007,1713870836455,159.02,0.00011199,2]
[323283009,1713870916211,312.09,8.645e-05,2]
[323283010,1713870917073,312.09,0.00010909,2]
[323283011,1713870924501,162.57,0.00010563,2]
[323283012,1713871125863,556.12,0.00010471,2]
[323283013,1713871142747,166.64,0.00010487,2]
[323283014,1713871252704,23085.1227,0.00011174,2]
[323283015,1713871308910,2533.72808082,0.000112,2]
[323283016,1713871335556,17241.0,0.00010503,2]
[323283017,1713871395142,936.32818045,0.00011,2]
[323283018,1713871406730,272.8,0.00010488,2]
[323283019,1713871459574,159.02,0.00010557,2]
[323283020,1713871465092,280.88,8.561e-05,2]
[323283021,1713871465497,280.88,0.00010824,2]
[323283165,1713871696315,-200.30895975,0.00011201,2]
[323283166,1713871696691,555.1,0.00010467,2]
[323283167,1713871707484,-227.58311487,0.00011201,2]
[323283168,1713871707866,-262.04281519,0.00011201,2]
[323283169,1713871708261,-237.82883259,0.00011201,2]
[323283170,1713871708952,-150.0,0.00011201,2]
[323283171,1713871711310,-150.0,0.00011201,2]
[323283172,1713871711858,-150.0,0.00011201,2]
[323283173,1713871712294,-150.0,0.00011201,2]
[323283174,1713871712721,-150.0,0.00011201,2]
[323283175,1713871714223,-150.0,0.00011201,2]
[323283176,1713871716504,-150.0,0.00011201,2]
[323283177,1713871717085,-150.0,0.00011201,2]
[323283178,1713871717593,-150.0,0.00011201,2]
[323283179,1713871718000,-150.0,0.00011201,2]
[323283180,1713871718418,-150.0,0.00011201,2]
[323283181,1713871720991,750.0,0.00010824,2]
[323283182,1713871721291,-150.0,0.00011201,2]
[323283183,1713871723068,-150.0,0.00011201,2]
[323283184,1713871723619,-150.0,0.00011201,2]
[323283185,1713871725366,751.53840059,0.00010824,2]
[323283186,1713871726246,-150.0,0.00011201,2]
[323283187,1713871727018,-150.0,0.00011201,2]
[323283188,1713871727804,-150.0,0.00011201,2]
[323283189,1713871728309,-150.0,0.00011201,2]
[323283190,1713871728726,-150.0,0.00011201,2]
[323283191,1713871729185,-150.0,0.00011201,2]
[323283192,1713871729620,161.51762488,0.000112,2]
[323283193,1713871730962,-32.14906471,0.00011201,2]
[323283194,1713871730983,-117.85093529,0.00011201,2]
[323283195,1713871731223,281.10986854,0.00010824,2]
[323283196,1713871731389,-150.0,0.00011201,2]
[323283197,1713871731845,-150.0,0.00011201,2]
[323283198,1713871732325,-150.0,0.00011201,2]
[323283199,1713871732739,-150.0,0.00011201,2]
[323283200,1713871733221,-150.0,0.00011201,2]
[323283201,1713871733718,-150.0,0.00011201,2]
[323283202,1713871734301,-150.0,0.00011201,2]
[323283203,1713871736609,-150.0,0.00011201,2]
[323283204,1713871737217,-150.0,0.00011201,2]
[323283205,1713871737651,-150.0,0.00011201,2]
[323283206,1713871738065,-150.0,0.00011201,2]
[323283207,1713871738558,-150.0,0.00011201,2]
[323283208,1713871738590,155.0,0.000112,2]
[323283209,1713871738996,-150.0,0.00011201,2]
[323283210,1713871739414,-150.0,0.00011201,2]
[323283211,1713871740091,-150.0,0.00011201,2]
[323283212,1713871740637,-150.0,0.00011201,2]
[323283213,1713871741178,2321.74176097,0.000112,2]
[323283214,1713871741246,-150.0,0.00011201,2]
[323283215,1713871741452,155.0,0.000112,2]
[323283216,1713871741705,-150.0,0.00011201,2]
[323283217,1713871742140,-150.0,0.00011201,2]
[323283218,1713871742420,408.45355212,0.000112,2]
[323283219,1713871742466,155.0,0.000112,2]
[323283220,1713871742590,-150.0,0.00011201,2]
[323283221,1713871743058,-150.0,0.00011201,2]
[323283222,1713871743639,2179.73737234,0.000112,2]
[323283223,1713871817773,2321.74176097,0.000112,2]
[323283224,1713871821477,150.0,0.00011144,2]
[323283235,1713871831498,-8847.85758406,0.00011201,2]
[323283237,1713871831509,-448.74875887,0.00011201,2]
[323283239,1713871831520,-253.083484,0.00011201,2]
[323283244,1713871831559,-333.00794755,0.00011201,2]
[323283245,1713871831570,-255.97559429,0.00011201,2]
[323283251,1713871831621,-279.69657276,0.00011201,2]
[323283253,1713871831633,-1098.8377003,0.00011201,2]
[323283255,1713871831645,-1701.26605067,0.00011201,2]
[323283256,1713871831660,-907.68493045,0.00011201,2]
[323283257,1713871831706,-17863.31502381,0.00011201,2]
[323283258,1713871831716,-300.0,0.00011201,2]
[323283259,1713871831725,-1350.0,0.00011201,2]
[323283260,1713871831735,-600.0,0.00011201,2]
[323283261,1713871831745,-1000.3158744,0.00011204,2]
[323283262,1713871831754,-3634.0104,0.0001123,2]
[323283263,1713871831764,-3776.8104222,0.0001124,2]
[323283264,1713871831774,-3214.14052018,0.00011254,2]
[323283265,1713871831784,-13304.98650985,0.00011256,2]
[323283266,1713871831794,-3171.15608804,0.0001127,2]
[323283267,1713871831804,-499.99,0.0001127,2]
[323283268,1713871831813,-186.92503158,0.00011271,2]
[323283269,1713871831823,-163.41822689,0.00011271,2]
[323283270,1713871831832,-236.35035794,0.00011271,2]
[323283271,1713871831842,-296.23440643,0.00011271,2]
[323283272,1713871831851,-210.59510764,0.00011271,2]
[323283273,1713871831861,-874.86248064,0.00011271,2]
[323283274,1713871831870,-155.75086121,0.00011271,2]
[323283275,1713871831879,-413.04177983,0.00011271,2]
[323283276,1713871831889,-352.18991848,0.00011272,2]
[323283277,1713871831898,-164.75425756,0.00011272,2]
[323283278,1713871831907,-311.06561894,0.00011272,2]
[323283279,1713871831916,-1725.40406029,0.00011272,2]
[323283280,1713871831926,-215.70427913,0.00011272,2]
[323283281,1713871831937,-155.60567877,0.00011272,2]
[323283282,1713871831946,-261.85017646,0.00011272,2]
[323283283,1713871831956,-157.34906948,0.00011272,2]
[323283285,1713871831964,-455.1790143,0.00011272,2]
[323283287,1713871831974,-500.0,0.00011272,2]
[323283289,1713871831983,-1896.92,0.00011272,2]
[323283291,1713871831993,-500.0,0.00011272,2]
[323283293,1713871832002,-1234.83,0.00011272,2]
[323283295,1713871832011,-500.0,0.00011272,2]
[323283297,1713871832020,-3765.16,0.00011272,2]
[323283299,1713871832029,-500.0,0.00011272,2]
[323283301,1713871832039,-500.0,0.00011272,2]
[323283303,1713871832048,-2038.22291212,0.00011272,2]
[323283306,1713871832060,-1719.97708788,0.00011272,2]
[323283308,1713871832069,-500.0,0.00011272,2]
[323283310,1713871832078,-500.0,0.00011272,2]
[323283312,1713871832088,-851.86613589,0.00011272,2]
[323283316,1713871832116,-7553.80386411,0.00011272,2]
[323283318,1713871832125,-1070.9,0.00011272,2]
[323283320,1713871832134,-1028.79,0.00011272,2]
[323283322,1713871832143,-500.0,0.00011272,2]
[323283324,1713871832153,-3041.11,0.00011272,2]
[323283326,1713871832162,-9734.69,0.00011272,2]
[323283327,1713871832172,-500.0,0.00011272,2]
[323283328,1713871832182,-500.0,0.00011272,2]
[323283329,1713871832191,-5354.4,0.00011272,2]
[323283330,1713871832200,-946.14,0.00011272,2]
[323283331,1713871832209,-500.0,0.00011272,2]
[323283332,1713871832219,-500.0,0.00011272,2]
[323283333,1713871832228,-1522.26,0.00011272,2]
[323283334,1713871832237,-500.0,0.00011272,2]
[323283335,1713871832246,-514.3,0.00011272,2]
[323283336,1713871832255,-500.0,0.00011272,2]
[323283337,1713871832264,-854.73,0.00011272,2]
[323283339,1713871832273,-500.0,0.00011272,2]
[323283340,1713871832282,-500.0,0.00011272,2]
[323283341,1713871832292,-538.28,0.00011272,2]
[323283342,1713871832301,-938.35,0.00011272,2]
[323283343,1713871832310,-500.0,0.00011272,2]
[323283344,1713871832318,-851.35,0.00011272,2]
[323283345,1713871832328,-652.45,0.00011272,2]
[323283346,1713871832337,-500.0,0.00011272,2]
[323283347,1713871832347,-762.8,0.00011272,2]
[323283348,1713871832356,-277.14239824,0.00011273,2]
[323283349,1713871832365,-500.0,0.00011273,2]
[323283350,1713871832374,-907.45,0.00011273,2]
[323283351,1713871832385,-1525.06,0.00011273,2]
[323283352,1713871832394,-500.0,0.00011273,2]
[323283353,1713871832403,-500.0,0.00011273,2]
[323283354,1713871832412,-520.58254522,0.00011273,2]
[323283355,1713871832422,-500.0,0.00011273,2]
[323283356,1713871832430,-1013.84,0.00011273,2]
[323283357,1713871832440,-500.0,0.00011273,2]
[323283358,1713871832449,-500.0,0.00011273,2]
[323283359,1713871832458,-500.0,0.00011273,2]
[323283360,1713871832467,-500.0,0.00011273,2]
[323283361,1713871832477,-963.26,0.00011273,2]
[323283362,1713871832666,-500.0,0.00011273,2]
[323283363,1713871832734,-157.36800317,0.00011273,2]
[323283364,1713871832744,-500.0,0.00011273,2]
[323283365,1713871832753,-500.0,0.00011273,2]
[323283366,1713871832762,-500.0,0.00011273,2]
[323283367,1713871832772,-500.0,0.00011273,2]
[323283368,1713871832781,-528.37,0.00011273,2]
[323283369,1713871832790,-500.0,0.00011273,2]
[323283370,1713871832800,-500.0,0.00011273,2]
[323283371,1713871832809,-500.0,0.00011273,2]
[323283372,1713871832819,-500.0,0.00011273,2]
[323283373,1713871832829,-296.11523025,0.00011273,2]
[323283374,1713871832839,-500.0,0.00011273,2]
[323283375,1713871832848,-500.0,0.00011273,2]
[323283376,1713871832858,-332.08303618,0.00011273,2]
[323283377,1713871832867,-613.2,0.00011273,2]
[323283378,1713871832876,-500.0,0.00011273,2]
[323283379,1713871832886,-500.0,0.00011273,2]
[323283380,1713871832895,-1360.4,0.00011273,2]
[323283381,1713871832904,-505.61125787,0.00011273,2]
[323283382,1713871832914,-500.0,0.00011273,2]
[323283383,1713871832924,-150.0,0.00011273,2]
[323283384,1713871832934,-500.0,0.00011273,2]
[323283385,1713871832943,-980.6,0.00011273,2]
[323283386,1713871832954,-500.0,0.00011273,2]
[323283387,1713871832963,-500.0,0.00011273,2]
[323283388,1713871832972,-2078.28,0.00011273,2]
[323283389,1713871832982,-500.0,0.00011273,2]
[323283390,1713871832991,-1298.26,0.00011273,2]
[323283391,1713871833000,-673.09,0.00011273,2]
[323283392,1713871833009,-500.0,0.00011273,2]
[323283393,1713871833018,-500.0,0.00011273,2]
[323283394,1713871833028,-500.0,0.00011273,2]
[323283395,1713871833037,-500.0,0.00011273,2]
[323283396,1713871833046,-500.0,0.00011273,2]
[323283397,1713871833055,-500.0,0.00011273,2]
[323283398,1713871833064,-500.0,0.00011273,2]
[323283399,1713871833074,-500.0,0.00011273,2]
[323283400,1713871833083,-500.0,0.00011273,2]
[323283401,1713871833092,-500.0,0.00011273,2]
[323283402,1713871833102,-775.01,0.00011273,2]
[323283403,1713871833111,-500.0,0.00011273,2]
[323283404,1713871833120,-3552.32,0.00011273,2]
[323283405,1713871833130,-500.0,0.00011273,2]
[323283406,1713871833139,-500.0,0.00011273,2]
[323283407,1713871833148,-2623.78,0.00011273,2]
[323283408,1713871833158,-500.0,0.00011273,2]
[323283409,1713871833167,-500.0,0.00011273,2]
[323283410,1713871833178,-500.0,0.00011273,2]
[323283411,1713871833187,-500.0,0.00011273,2]
[323283412,1713871833197,-1396.25,0.00011273,2]
[323283413,1713871833206,-1254.72,0.00011273,2]
[323283414,1713871833215,-500.0,0.00011273,2]
[323283415,1713871833224,-500.0,0.00011273,2]
[323283416,1713871833233,-507.13363393,0.00011273,2]
[323283417,1713871833243,-500.0,0.00011273,2]
[323283418,1713871833252,-862.5,0.00011273,2]
[323283419,1713871833261,-1216.26,0.00011273,2]
[323283420,1713871833269,-500.0,0.00011273,2]
[323283421,1713871833279,-500.0,0.00011273,2]
[323283422,1713871833287,-500.0,0.00011273,2]
[323283423,1713871833296,-1878.46,0.00011273,2]
[323283424,1713871833305,-500.0,0.00011273,2]
[323283425,1713871833314,-5560.76,0.00011273,2]
[323283426,1713871833324,-229.32341527,0.00011273,2]
[323283427,1713871833333,-500.0,0.00011273,2]
[323283428,1713871833341,-500.0,0.00011273,2]
[323283429,1713871833351,-500.0,0.00011273,2]
[323283430,1713871833361,-500.0,0.00011273,2]
[323283431,1713871833370,-500.0,0.00011273,2]
[323283432,1713871833379,-644.0278392,0.00011273,2]
[323283433,1713871833388,-3130.54,0.00011273,2]
[323283434,1713871833397,-646.91,0.00011273,2]
[323283435,1713871833406,-500.0,0.00011273,2]
[323283436,1713871833415,-625.36,0.00011273,2]
[323283437,1713871833424,-500.0,0.00011273,2]
[323283438,1713871833434,-729.31,0.00011273,2]
[323283439,1713871833442,-500.0,0.00011273,2]
[323283440,1713871833451,-606.95,0.00011273,2]
[323283441,1713871833461,-500.0,0.00011273,2]
[323283442,1713871833470,-500.0,0.00011273,2]
[323283443,1713871833479,-500.0,0.00011273,2]
[323283444,1713871833488,-530.77,0.00011273,2]
[323283445,1713871833497,-4503.64,0.00011273,2]
[323283446,1713871833507,-500.0,0.00011273,2]
[323283447,1713871833515,-642.19050376,0.00011273,2]
[323283448,1713871833525,-2500.73,0.00011273,2]
[323283449,1713871833534,-986.19,0.00011273,2]
[323283450,1713871833544,-500.0,0.00011273,2]
[323283451,1713871833553,-500.0,0.00011273,2]
[323283452,1713871833563,-500.0,0.00011273,2]
[323283453,1713871833572,-500.0,0.00011273,2]
[323283454,1713871833582,-286.87327375,0.00011273,2]
[323283455,1713871833591,-564.79,0.00011273,2]
[323283456,1713871833600,-2251.35,0.00011273,2]
[323283457,1713871833609,-754.05,0.00011273,2]
[323283458,1713871833618,-500.0,0.00011273,2]
[323283459,1713871833627,-3596.76,0.00011273,2]
[323283460,1713871833636,-500.0,0.00011273,2]
[323283461,1713871833648,-500.0,0.00011273,2]
[323283462,1713871833659,-2085.86,0.00011273,2]
[323283463,1713871833669,-1084.42,0.00011273,2]
[323283464,1713871833678,-500.0,0.00011273,2]
[323283465,1713871833689,-500.0,0.00011273,2]
[323283466,1713871833698,-2835.65,0.00011273,2]
[323283467,1713871833707,-500.0,0.00011273,2]
[323283468,1713871833716,-500.0,0.00011273,2]
[323283469,1713871833726,-500.0,0.00011273,2]
[323283470,1713871833736,-9181.46,0.00011273,2]
[323283471,1713871833746,-500.0,0.00011273,2]
[323283472,1713871833756,-761.08,0.00011273,2]
[323283473,1713871833765,-500.0,0.00011273,2]
[323283474,1713871833774,-500.0,0.00011273,2]
[323283475,1713871833783,-1898.93,0.00011273,2]
[323283476,1713871833793,-500.0,0.00011273,2]
[323283477,1713871833802,-10139.44,0.00011273,2]
[323283478,1713871833811,-1470.41,0.00011273,2]
[323283479,1713871833820,-500.0,0.00011273,2]
[323283480,1713871833829,-1787.69,0.00011273,2]
[323283481,1713871833838,-1433.16,0.00011273,2]
[323283482,1713871833847,-500.0,0.00011273,2]
[323283483,1713871833858,-500.0,0.00011273,2]
[323283484,1713871833867,-500.0,0.00011273,2]
[323283485,1713871833876,-500.0,0.00011273,2]
[323283486,1713871833885,-500.0,0.00011273,2]
[323283487,1713871833895,-500.0,0.00011273,2]
[323283488,1713871833904,-1006.1,0.00011273,2]
[323283489,1713871833912,-500.0,0.00011273,2]
[323283490,1713871833921,-500.0,0.00011273,2]
[323283491,1713871833930,-1821.11,0.00011273,2]
[323283492,1713871833940,-500.0,0.00011273,2]
[323283493,1713871833950,-637.3,0.00011273,2]
[323283494,1713871833959,-3600.35291469,0.00011273,2]
[323283495,1713871834299,-18261.4851014,0.00011273,2]
[323283501,1713871837538,-216.42941215,0.00011271,2]
[323283502,1713871837547,-707.04265264,0.00011271,2]
[323283503,1713871837557,-3009.69198391,0.00011273,2]
[323283504,1713871837567,-1477.84,0.00011273,2]
[323283505,1713871837576,-500.0,0.00011273,2]
[323283506,1713871837585,-2122.21,0.00011273,2]
[323283507,1713871837595,-500.0,0.00011273,2]
[323283508,1713871837604,-500.0,0.00011273,2]
[323283509,1713871837613,-2342.85,0.00011273,2]
[323283510,1713871837622,-505.09,0.00011273,2]
[323283511,1713871837631,-500.0,0.00011273,2]
[323283512,1713871837641,-930.33,0.00011273,2]
[323283513,1713871837652,-1393.2,0.00011273,2]
[323283514,1713871837663,-294.9396767,0.00011273,2]
[323283515,1713871837672,-3351.1,0.00011273,2]
[323283516,1713871837683,-500.0,0.00011273,2]
[323283517,1713871837696,-1127.53,0.00011273,2]
[323283518,1713871837706,-643.48,0.00011273,2]
[323283519,1713871837716,-500.0,0.00011273,2]
[323283520,1713871837725,-500.0,0.00011273,2]
[323283521,1713871837735,-500.0,0.00011273,2]
[323283522,1713871837745,-854.94,0.00011273,2]
[323283523,1713871837754,-500.0,0.00011273,2]
[323283524,1713871837763,-5162.62,0.00011273,2]
[323283525,1713871837773,-45186.54,0.00011273,2]
[323283526,1713871837782,-500.0,0.00011273,2]
[323283527,1713871837792,-500.0,0.00011274,2]
[323283528,1713871837801,-500.0,0.00011274,2]
[323283529,1713871837810,-500.0,0.00011274,2]
[323283530,1713871837820,-500.0,0.00011274,2]
[323283531,1713871837829,-500.0,0.00011274,2]
[323283532,1713871837838,-500.0,0.00011274,2]
[323283533,1713871837847,-354.77176064,0.00011274,2]
[323283534,1713871837856,-1087.26,0.00011274,2]
[323283535,1713871837865,-1104.64,0.00011274,2]
[323283536,1713871837874,-10000.0,0.00011274,2]
[323283537,1713871837884,-500.0,0.00011274,2]
[323283538,1713871837893,-500.0,0.00011274,2]
[323283539,1713871837902,-500.0,0.00011274,2]
[323283540,1713871837911,-500.0,0.00011274,2]
[323283541,1713871837920,-500.0,0.00011274,2]
[323283542,1713871837929,-531.09637212,0.00011274,2]
[323283543,1713871837941,-500.0,0.00011274,2]
[323283544,1713871837950,-500.0,0.00011274,2]
[323283545,1713871837959,-329.99031276,0.00011274,2]
[323283546,1713871837968,-500.0,0.00011274,2]
[323283547,1713871837978,-375.01376989,0.00011274,2]
[323283548,1713871838012,-124.98623011,0.00011274,2]
[323283549,1713871838021,-500.0,0.00011274,2]
[323283550,1713871838030,-500.0,0.00011274,2]
[323283551,1713871838039,-500.0,0.00011274,2]
[323283552,1713871838048,-824.87819825,0.00011274,2]
[323283636,1713871840128,-334.83180175,0.00011274,2]
[323283638,1713871840138,-500.0,0.00011274,2]
[323283641,1713871840147,-688.55,0.00011274,2]
[323283644,1713871840156,-500.0,0.00011274,2]
[323283647,1713871840165,-1154.44,0.00011274,2]
[323283649,1713871840175,-920.53,0.00011274,2]
[323283652,1713871840184,-500.0,0.00011274,2]
[323283655,1713871840195,-500.0,0.00011274,2]
[323283658,1713871840204,-500.0,0.00011274,2]
[323283660,1713871840213,-662.09,0.00011274,2]
[323283663,1713871840223,-500.0,0.00011274,2]
[323283666,1713871840232,-500.0,0.00011274,2]
[323283669,1713871840241,-500.0,0.00011274,2]
[323283672,1713871840250,-500.0,0.00011274,2]
[323283675,1713871840259,-972.07,0.00011274,2]
[323283678,1713871840268,-500.0,0.00011274,2]
[323283681,1713871840278,-500.0,0.00011274,2]
[323283684,1713871840287,-500.0,0.00011274,2]
[323283687,1713871840297,-500.0,0.00011274,2]
[323283689,1713871840306,-500.0,0.00011274,2]
[323283692,1713871840315,-500.0,0.00011274,2]
[323283695,1713871840325,-874.43,0.00011274,2]
[323283699,1713871840334,-500.0,0.00011274,2]
[323283702,1713871840343,-806.66,0.00011274,2]
[323283705,1713871840353,-500.0,0.00011274,2]
[323283708,1713871840362,-992.39,0.00011274,2]
[323283711,1713871840371,-500.0,0.00011274,2]
[323283714,1713871840381,-799.06,0.00011274,2]
[323283716,1713871840390,-500.0,0.00011274,2]
[323283720,1713871840400,-500.0,0.00011274,2]
[323283723,1713871840409,-500.0,0.00011274,2]
[323283725,1713871840418,-161.16852388,0.00011274,2]
[323283727,1713871840428,-500.0,0.00011274,2]
[323283731,1713871840438,-500.0,0.00011274,2]
[323283734,1713871840448,-500.0,0.00011274,2]
[323283737,1713871840457,-500.0,0.00011274,2]
[323283740,1713871840466,-500.0,0.00011274,2]
[323283743,1713871840475,-500.0,0.00011274,2]
[323283745,1713871840485,-500.0,0.00011274,2]
[323283748,1713871840494,-819.54,0.00011274,2]
[323283750,1713871840504,-500.0,0.00011274,2]
[323283753,1713871840513,-641.23,0.00011274,2]
[323283756,1713871840524,-500.0,0.00011274,2]
[323283759,1713871840533,-500.0,0.00011274,2]
[323283762,1713871840542,-894.72,0.00011274,2]
[323283765,1713871840551,-589.24,0.00011274,2]
[323283767,1713871840561,-500.0,0.00011274,2]
[323283770,1713871840571,-890.49,0.00011274,2]
[323283773,1713871840589,-500.0,0.00011274,2]
[323283776,1713871840607,-257.75848169,0.00011274,2]
[323283779,1713871840616,-500.0,0.00011274,2]
[323283781,1713871840625,-693.8,0.00011274,2]
[323283784,1713871840634,-1439.01,0.00011274,2]
[323283787,1713871840643,-500.0,0.00011274,2]
[323283790,1713871840653,-500.0,0.00011274,2]
[323283793,1713871840664,-500.0,0.00011274,2]
[323283795,1713871840673,-544.76,0.00011274,2]
[323283797,1713871840682,-500.0,0.00011274,2]
[323283799,1713871840692,-90.68849262,0.00011274,2]
[323283802,1713871840708,-409.31150738,0.00011274,2]
[323283804,1713871840717,-500.0,0.00011274,2]
[323283806,1713871840727,-642.23,0.00011274,2]
[323283808,1713871840737,-1140.65,0.00011274,2]
[323283810,1713871840747,-563.67652176,0.00011274,2]
[323283812,1713871840756,-500.0,0.00011274,2]
[323283814,1713871840765,-645.43,0.00011274,2]
[323283816,1713871840775,-500.0,0.00011274,2]
[323283818,1713871840785,-1468.39,0.00011274,2]
[323283820,1713871840794,-530.26,0.00011274,2]
[323283822,1713871840804,-1798.04,0.00011274,2]
[323283824,1713871840813,-602.85,0.00011274,2]
[323283826,1713871840823,-540.95,0.00011274,2]
[323283828,1713871840833,-279.13092413,0.00011274,2]
[323283830,1713871840843,-500.0,0.00011274,2]
[323283832,1713871840853,-500.0,0.00011274,2]
[323283834,1713871840862,-500.0,0.00011274,2]
[323283836,1713871840871,-500.0,0.00011274,2]
[323283838,1713871840880,-500.0,0.00011274,2]
[323283840,1713871840890,-500.0,0.00011274,2]
[323283842,1713871840899,-500.0,0.00011274,2]
[323283844,1713871840909,-708.86,0.00011274,2]
[323283846,1713871840918,-500.0,0.00011274,2]
[323283848,1713871840928,-500.0,0.00011274,2]
[323283850,1713871840938,-500.0,0.00011274,2]
[323283852,1713871840948,-500.0,0.00011274,2]
[323283854,1713871840957,-500.0,0.00011274,2]
[323283856,1713871840967,-423.44944397,0.00011274,2]
[323283858,1713871840976,-718.03,0.00011274,2]
[323283860,1713871840985,-500.0,0.00011274,2]
[323283862,1713871840994,-483.58694588,0.00011274,2]
[323283864,1713871841004,-848.63,0.00011274,2]
[323283866,1713871841013,-500.0,0.00011274,2]
[323283868,1713871841023,-500.0,0.00011274,2]
[323283870,1713871841032,-810.11,0.00011274,2]
[323283872,1713871841041,-500.0,0.00011274,2]
[323283875,1713871841051,-150.17049301,0.00011274,2]
[323283877,1713871841060,-950.48,0.00011274,2]
[323283879,1713871841069,-500.0,0.00011274,2]
[323283881,1713871841079,-1960.02,0.00011274,2]
[323283883,1713871841092,-870.32,0.00011274,2]
[323283885,1713871841102,-711.68,0.00011274,2]
[323283887,1713871841112,-525.9477692,0.00011274,2]
[323283889,1713871841122,-529.66,0.00011274,2]
[323283891,1713871841131,-613.2,0.00011274,2]
[323283894,1713871841141,-500.0,0.00011274,2]
[323283896,1713871841152,-1181.54,0.00011274,2]
[323283898,1713871841162,-1500.18,0.00011274,2]
[323283900,1713871841171,-866.55,0.00011274,2]
[323283902,1713871841180,-730.67,0.00011274,2]
[323283904,1713871841189,-500.0,0.00011274,2]
[323283906,1713871841199,-500.0,0.00011274,2]
[323283908,1713871841208,-500.0,0.00011274,2]
[323283910,1713871841217,-3198.2,0.00011274,2]
[323283912,1713871841226,-908.37,0.00011274,2]
[323283914,1713871841236,-771.21,0.00011274,2]
[323283916,1713871841245,-654.32,0.00011274,2]
[323283918,1713871841254,-8802.65,0.00011274,2]
[323283920,1713871841263,-882.55,0.00011274,2]
[323283922,1713871841273,-500.0,0.00011274,2]
[323283924,1713871841282,-500.0,0.00011274,2]
[323283926,1713871841292,-3092.05,0.00011274,2]
[323283928,1713871841301,-594.64944782,0.00011274,2]
[323283930,1713871841310,-1099.1,0.00011274,2]
[323283932,1713871841319,-500.0,0.00011274,2]
[323283934,1713871841329,-500.0,0.00011274,2]
[323283936,1713871841338,-500.0,0.00011274,2]
[323283938,1713871841347,-500.0,0.00011274,2]
[323283940,1713871841356,-500.0,0.00011274,2]
[323283942,1713871841366,-500.0,0.00011274,2]
[323283944,1713871841375,-927.37,0.00011274,2]
[323283946,1713871841384,-500.0,0.00011274,2]
[323283948,1713871841393,-341.86624751,0.00011274,2]
[323283950,1713871841403,-500.0,0.00011274,2]
[323283952,1713871841412,-500.0,0.00011274,2]
[323283954,1713871841421,-500.0,0.00011274,2]
[323283956,1713871841430,-555.92,0.00011274,2]